fUST/lending_fUST_20240908
["ID","MTS","AMOUNT","RATE_DAILY","PERIOD"]
[337550619,1725805932888,-500.0,0.00057534,120]
[337550620,1725805932898,-619.06978882,0.00057534,120]
[337550621,1725805932908,-500.0,0.00057534,120]
[337550622,1725805932917,-500.0,0.00057534,120]
[337550623,1725805932926,-500.0,0.00057534,120]
[337550624,1725805932935,-906.85,0.00057534,120]
[337550625,1725805932944,-597.88,0.00057534,120]
[337550626,1725805932953,-2349.55,0.00057534,120]
[337550627,1725805932962,-500.0,0.00057534,120]
[337550628,1725805932971,-500.0,0.00057534,120]
[337550629,1725805932980,-500.0,0.00057534,120]
[337550630,1725805932990,-500.0,0.00057534,120]
[337550631,1725805932999,-968.65,0.00057534,120]
[337550632,1725805933009,-754.03,0.00057534,120]
[337550633,1725805933021,-1888.16,0.00057534,120]
[337550634,1725805933030,-500.0,0.00057534,120]
[337550635,1725805933040,-566.06037959,0.00057534,120]
[337550636,1725805933049,-547.56,0.00057534,120]
[337550637,1725805933059,-500.0,0.00057534,120]
[337550638,1725805933068,-500.0,0.00057534,120]
[337550639,1725805933077,-2284.18,0.00057534,120]
[337550640,1725805933086,-500.0,0.00057534,120]
[337550641,1725805933096,-500.0,0.00057534,120]
[337550642,1725805933105,-500.0,0.00057534,120]
[337550643,1725805933116,-500.0,0.00057534,120]
[337550644,1725805933125,-3590.46,0.00057534,120]
[337550645,1725805933134,-436.6967558,0.00057534,120]
[337550646,1725805933147,-182.96821321,0.00057534,120]
[337550647,1725805933156,-1819.09,0.00057534,120]
[337550648,1725805933166,-500.0,0.00057534,120]
[337550649,1725805933176,-500.0,0.00057534,120]
[337550650,1725805933185,-520.5907517,0.00057534,120]
[337550651,1725805933194,-823.39,0.00057534,120]
[337550652,1725805933203,-1728.98,0.00057534,120]
[337550653,1725805933213,-500.0,0.00057534,120]
[337550654,1725805933222,-500.0,0.00057534,120]
[337550655,1725805933231,-500.0,0.00057534,120]
[337550656,1725805933239,-554.96,0.00057534,120]
[337550657,1725805933248,-500.0,0.00057534,120]
[337550658,1725805933257,-3569.14,0.00057534,120]
[337550659,1725805933267,-1143.59,0.00057534,120]
[337550660,1725805933275,-1919.68,0.00057534,120]
[337550661,1725805933285,-500.0,0.00057534,120]
[337550662,1725805933294,-500.0,0.00057534,120]
[337550663,1725805933304,-500.0,0.00057534,120]
[337550664,1725805933313,-3136.53,0.00057534,120]
[337550665,1725805933321,-500.0,0.00057534,120]
[337550666,1725805933330,-535.66,0.00057534,120]
[337550667,1725805933339,-500.0,0.00057534,120]
[337550668,1725805933350,-500.0,0.00057534,120]
[337550669,1725805933359,-1239.09,0.00057534,120]
[337550670,1725805933370,-500.0,0.00057534,120]
[337550671,1725805933379,-500.0,0.00057534,120]
[337550672,1725805933390,-816.25,0.00057534,120]
[337550673,1725805933399,-500.0,0.00057534,120]
[337550674,1725805933409,-354.34454007,0.00057534,120]
[337550675,1725805933421,-500.0,0.00057534,120]
[337550676,1725805933431,-735.13,0.00057534,7]
[337550677,1725805933440,-500.0,0.00057534,120]
[337550678,1725805933450,-544.41,0.00057534,120]
[337550679,1725805933459,-500.0,0.00057534,120]
[337550680,1725805933471,-702.53,0.00057534,120]
[337550681,1725805933481,-2422.66,0.00057534,120]
[337550682,1725805933490,-651.97,0.00057534,120]
[337550683,1725805933499,-912.86,0.00057534,120]
[337550684,1725805933509,-500.0,0.00057534,120]
[337550685,1725805933518,-500.0,0.00057534,120]
[337550686,1725805933528,-500.0,0.00057534,120]
[337550687,1725805933537,-500.0,0.00057534,120]
[337550688,1725805933546,-2604.32,0.00057534,30]
[337550689,1725805933556,-712.44,0.00057534,120]
[337550690,1725805933565,-500.0,0.00057534,120]
[337550691,1725805933575,-2383.05,0.00057534,120]
[337550692,1725805933584,-1268.01,0.00057534,120]
[337550693,1725805933593,-500.0,0.00057534,120]
[337550694,1725805933602,-500.0,0.00057534,120]
[337550695,1725805933613,-500.0,0.00057534,120]
[337550696,1725805933630,-500.0,0.00057534,20]
[337550697,1725805933640,-500.0,0.00057534,120]
[337550698,1725805933649,-599.83,0.00057534,120]
[337550699,1725805933659,-500.0,0.00057534,120]
[337550700,1725805933669,-273.11435328,0.00057534,120]
[337550701,1725805933678,-1639.78,0.00057534,120]
[337550702,1725805933687,-706.48,0.00057534,120]
[337550703,1725805933700,-500.0,0.00057534,120]
[337550704,1725805933709,-500.0,0.00057534,120]
[337550705,1725805933719,-500.0,0.00057534,120]
[337550706,1725805933730,-508.2,0.00057534,120]
[337550707,1725805933740,-500.0,0.00057534,120]
[337550708,1725805933751,-500.0,0.00057534,120]
[337550709,1725805933760,-500.0,0.00057534,120]
[337550710,1725805933770,-549.45,0.00057534,120]
[337550711,1725805933780,-500.0,0.00057534,120]
[337550712,1725805933790,-500.0,0.00057534,120]
[337550713,1725805933799,-500.0,0.00057534,120]
[337550714,1725805933809,-1099.95,0.00057534,120]
[337550715,1725805933818,-500.0,0.00057534,120]
[337550716,1725805933828,-2965.66,0.00057534,120]
[337550717,1725805933838,-500.0,0.00057534,120]
[337550718,1725805933848,-500.0,0.00057534,120]
[337550719,1725805933858,-500.0,0.00057534,120]
[337550720,1725805933870,-1019.13,0.00057534,120]
[337550721,1725805933880,-500.58,0.00057534,120]
[337550722,1725805933889,-500.0,0.00057534,120]
[337550723,1725805933899,-500.0,0.00057534,120]
[337550724,1725805933908,-500.0,0.00057534,120]
[337550725,1725805933917,-536.34454108,0.00057534,120]
[337550726,1725805933926,-500.0,0.00057534,120]
[337550727,1725805933936,-500.0,0.00057534,120]
[337550728,1725805933946,-536.46,0.00057534,120]
[337550729,1725805933955,-500.0,0.00057534,120]
[337550730,1725805933965,-956.94,0.00057534,120]
[337550731,1725805933975,-2614.93,0.00057534,120]
[337550732,1725805933984,-1258.91,0.00057534,30]
[337550733,1725805933993,-936.51,0.00057534,120]
[337550734,1725805934003,-750.82,0.00057534,120]
[337550735,1725805934013,-500.0,0.00057534,120]
[337550736,1725805934024,-500.0,0.00057534,120]
[337550737,1725805934035,-500.0,0.00057534,120]
[337550738,1725805934047,-500.0,0.00057534,120]
[337550739,1725805934058,-500.96,0.00057534,120]
[337550740,1725805934067,-500.0,0.00057534,120]
[337550741,1725805934076,-809.49,0.00057534,120]
[337550742,1725805934085,-1610.56,0.00057534,2]
[337550743,1725805934095,-500.0,0.00057534,120]
[337550744,1725805934104,-2330.31,0.00057534,120]
[337550745,1725805934113,-500.0,0.00057534,120]
[337550746,1725805934124,-919.1,0.00057534,120]
[337550747,1725805934137,-713.82,0.00057534,120]
[337550748,1725805934146,-1348.0,0.00057534,120]
[337550749,1725805934156,-1215.29,0.00057534,120]
[337550750,1725805934166,-500.0,0.00057534,120]
[337550751,1725805934175,-500.0,0.00057534,120]
[337550752,1725805934185,-500.0,0.00057534,120]
[337550753,1725805934195,-500.0,0.00057534,30]
[337550754,1725805934204,-500.0,0.00057534,120]
[337550755,1725805934213,-500.0,0.00057534,120]
[337550756,1725805934396,-8647.46,0.00057534,120]
[337550757,1725805934406,-500.0,0.00057534,120]
[337550758,1725805934416,-1268.96,0.00057534,120]
[337550759,1725805934425,-905.01,0.00057534,120]
[337550760,1725805934435,-500.0,0.00057534,120]
[337550761,1725805934445,-500.0,0.00057534,120]
[337550762,1725805934454,-1095.72,0.00057534,120]
[337550763,1725805934463,-500.0,0.00057534,120]
[337550764,1725805934473,-500.0,0.00057534,120]
[337550765,1725805934482,-500.0,0.00057534,120]
[337550766,1725805934492,-500.0,0.00057534,120]
[337550767,1725805934502,-2723.96,0.00057534,120]
[337550768,1725805934512,-3738.38,0.00057534,120]
[337550769,1725805934521,-1760.49,0.00057534,120]
[337550770,1725805934531,-500.0,0.00057534,120]
[337550771,1725805934540,-500.0,0.00057534,120]
[337550772,1725805934549,-500.0,0.00057534,120]
[337550773,1725805934559,-1652.87,0.00057534,120]
[337550774,1725805934568,-1533.73,0.00057534,7]
[337550775,1725805934577,-500.0,0.00057534,120]
[337550776,1725805934586,-935.82,0.00057534,120]
[337550777,1725805934596,-500.0,0.00057534,2]
[337550778,1725805934605,-990.57,0.00057534,120]
[337550779,1725805934615,-1634.99,0.00057534,120]
[337550780,1725805934626,-500.0,0.00057534,120]
[337550781,1725805934635,-500.0,0.00057534,120]
[337550782,1725805934645,-500.0,0.00057534,120]
[337550783,1725805934654,-561.96,0.00057534,120]
[337550784,1725805934664,-999.0,0.00057534,120]
[337550785,1725805934674,-798.12,0.00057534,120]
[337550786,1725805934684,-500.0,0.00057534,120]
[337550787,1725805934694,-756.74,0.00057534,120]
[337550788,1725805934703,-500.0,0.00057534,120]
[337550789,1725805934713,-500.0,0.00057534,120]
[337550790,1725805934724,-500.0,0.00057534,120]
[337550791,1725805934735,-3183.67,0.00057534,120]
[337550792,1725805934744,-639.86,0.00057534,120]
[337550793,1725805934753,-500.0,0.00057534,120]
[337550794,1725805934763,-1579.24,0.00057534,120]
[337550795,1725805934773,-500.0,0.00057534,120]
[337550796,1725805934784,-1002.7,0.00057534,120]
[337550797,1725805934795,-3855.05,0.00057534,120]
[337550798,1725805934805,-500.0,0.00057534,120]
[337550799,1725805934814,-1054.78,0.00057534,120]
[337550800,1725805934824,-4259.05,0.00057534,120]
[337550801,1725805934835,-500.0,0.00057534,120]
[337550802,1725805934844,-500.0,0.00057534,120]
[337550803,1725805934856,-500.0,0.00057534,120]
[337550804,1725805934868,-556.08416536,0.00057534,120]
[337550805,1725805934878,-2083.33,0.00057534,120]
[337550806,1725805934888,-1317.78,0.00057534,120]
[337550807,1725805934898,-500.0,0.00057534,120]
[337550808,1725805934908,-1267.76,0.00057534,120]
[337550809,1725805934918,-500.0,0.00057534,120]
[337550810,1725805934927,-3178.06,0.00057534,120]
[337550811,1725805934937,-500.0,0.00057534,120]
[337550812,1725805934946,-5184.01,0.00057534,120]
[337550813,1725805934957,-588.78,0.00057534,120]
[337550814,1725805934967,-500.0,0.00057534,120]
[337550815,1725805934976,-535.99,0.00057534,120]
[337550816,1725805934986,-3023.99,0.00057534,120]
[337550817,1725805934996,-500.0,0.00057534,120]
[337550818,1725805935006,-571.74,0.00057534,120]
[337550819,1725805935017,-622.8,0.00057534,120]
[337550820,1725805935027,-1447.48,0.00057534,120]
[337550821,1725805935037,-2095.57,0.00057534,120]
[337550822,1725805935048,-500.0,0.00057534,120]
[337550823,1725805935059,-500.0,0.00057534,120]
[337550824,1725805935069,-500.0,0.00057534,120]
[337550825,1725805935079,-4027.69,0.00057534,120]
[337550826,1725805935089,-2650.07,0.00057534,120]
[337550827,1725805935099,-2388.47,0.00057534,120]
[337550828,1725805935109,-674.33,0.00057534,120]
[337550829,1725805935121,-3583.25,0.00057534,120]
[337550830,1725805935133,-636.12,0.00057534,120]
[337550831,1725805935146,-2356.95,0.00057534,120]
[337550832,1725805935157,-1869.76,0.00057534,120]
[337550833,1725805935167,-3073.31,0.00057534,120]
[337550834,1725805935178,-500.0,0.00057534,120]
[337550835,1725805935189,-500.0,0.00057534,120]
[337550836,1725805935198,-500.0,0.00057534,120]
[337550837,1725805935208,-3853.3,0.00057534,120]
[337550838,1725805935219,-7074.82,0.00057534,120]
[337550839,1725805935230,-644.27,0.00057534,120]
[337550840,1725805935240,-102728.31,0.00057534,120]
[337550841,1725805935250,-23755.79,0.00057534,120]
[337550842,1725805935262,-500.0,0.00057534,120]
[337550843,1725805935274,-606.98,0.00057534,120]
[337550844,1725805935284,-2449.96,0.00057534,120]
[337550845,1725805935293,-205.49124983,0.00057534,120]
[337550846,1725805935303,-500.0,0.00057534,60]
[337550847,1725805935313,-1564.55,0.00057534,120]
[337550848,1725805935324,-3064.33,0.00057534,120]
[337550849,1725805935334,-500.58,0.00057534,120]
[337550850,1725805935344,-1746.51,0.00057534,120]
[337550851,1725805935356,-500.0,0.00057534,120]
[337550852,1725805935367,-3749.99,0.00057534,21]
[337550853,1725805935377,-9742.51,0.00057534,120]
[337550854,1725805935387,-500.0,0.00057534,120]
[337550855,1725805935398,-13752.81,0.00057534,120]
[337550856,1725805935407,-963.77,0.00057534,120]
[337550857,1725805935417,-500.0,0.00057534,120]
[337550858,1725805935427,-703.33,0.00057534,120]
[337550859,1725805935437,-2137.02,0.00057534,120]
[337550860,1725805935447,-1973.22,0.00057534,120]
[337550861,1725805935457,-500.0,0.00057534,120]
[337550862,1725805935467,-14745.27,0.00057534,120]
[337550863,1725805935476,-500.0,0.00057534,120]
[337550864,1725805935486,-500.0,0.00057534,120]
[337550865,1725805935497,-5506.22,0.00057534,120]
[337550866,1725805935507,-837.11,0.00057534,120]
[337550867,1725805935516,-500.0,0.00057534,120]
[337550868,1725805935526,-2101.71,0.00057534,120]
[337550869,1725805935536,-3357.86,0.00057534,120]
[337550870,1725805935547,-1071.54,0.00057534,120]
[337550871,1725805935556,-500.0,0.00057534,120]
[337550872,1725805935567,-2112.01,0.00057534,120]
[337550873,1725805935576,-500.0,0.00057534,120]
[337550874,1725805935586,-574.17,0.00057534,120]
[337550875,1725805935596,-8902.45,0.00057534,120]
[337550876,1725805935607,-2582.17,0.00057534,120]
[337550877,1725805935617,-500.0,0.00057534,120]
[337550878,1725805935627,-23937.12,0.00057534,120]
[337550879,1725805935637,-3412.04,0.00057534,120]
[337550880,1725805935647,-2460.34,0.00057534,120]
[337550881,1725805935657,-500.0,0.00057534,120]
[337550882,1725805935668,-1782.06,0.00057534,120]
[337550883,1725805935678,-976.47,0.00057534,120]
[337550884,1725805935688,-1276.39,0.00057534,120]
[337550885,1725805935699,-500.0,0.00057534,120]
[337550886,1725805935708,-500.0,0.00057534,120]
[337550887,1725805935718,-500.0,0.00057534,120]
[337550888,1725805935728,-1603.97,0.00057534,120]
[337550889,1725805935739,-500.0,0.00057534,120]
[337550890,1725805935749,-504.03492117,0.00057534,120]
[337550891,1725805935759,-500.0,0.00057534,120]
[337550892,1725805935769,-5806.88,0.00057534,120]
[337550893,1725805935779,-500.0,0.00057534,120]
[337550894,1725805935789,-500.0,0.00057534,120]
[337550895,1725805935799,-1279.78,0.00057534,120]
[337550896,1725805935809,-534.03,0.00057534,120]
[337550897,1725805935818,-1024.51,0.00057534,120]
[337550898,1725805935828,-500.0,0.00057534,120]
[337550899,1725805935838,-1275.45,0.00057534,120]
[337550900,1725805935848,-500.0,0.00057534,120]
[337550901,1725805935859,-2254.71,0.00057534,120]
[337550902,1725805935871,-500.0,0.00057534,120]
[337550903,1725805935881,-3406.69,0.00057534,120]
[337550904,1725805935890,-1262.14,0.00057534,120]
[337550905,1725805935900,-500.0,0.00057534,120]
[337550906,1725805935911,-582.4,0.00057534,120]
[337550907,1725805935920,-500.0,0.00057534,120]
[337550908,1725805935930,-500.0,0.00057534,120]
[337550909,1725805935940,-177.13746196,0.00057534,120]
[337550910,1725805935950,-500.0,0.00057534,30]
[337550911,1725805935960,-500.0,0.00057534,120]
[337550912,1725805935970,-14687.42,0.00057534,120]
[337550913,1725805935980,-500.0,0.00057534,120]
[337550914,1725805935990,-500.0,0.00057534,120]
[337550915,1725805935999,-212.98620309,0.00057534,120]
[337550916,1725805936009,-588.77025148,0.00057534,120]
[337550917,1725805936018,-500.0,0.00057534,120]
[337550918,1725805936028,-5272.46,0.00057534,120]
[337550919,1725805936037,-500.0,0.00057534,120]
[337550920,1725805936048,-504.73,0.00057534,120]
[337550921,1725805936058,-1106.81,0.00057534,120]
[337550922,1725805936068,-2811.07,0.00057534,120]
[337550923,1725805936078,-2345.52,0.00057534,120]
[337550924,1725805936088,-2986.05,0.00057534,120]
[337550925,1725805936097,-988.28,0.00057534,120]
[337550926,1725805936107,-5000.0,0.00057534,120]
[337550927,1725805936118,-500.0,0.00057534,120]
[337550928,1725805936127,-500.0,0.00057534,120]
[337550929,1725805936138,-774.97,0.00057534,120]
[337550930,1725805936148,-2940.53,0.00057534,120]
[337550931,1725805936157,-2486.72,0.00057534,120]
[337550932,1725805936168,-500.0,0.00057534,120]
[337550933,1725805936178,-3307.1,0.00057534,120]
[337550934,1725805936189,-548.39,0.00057534,120]
[337550935,1725805936199,-4017.77,0.00057534,120]
[337550936,1725805936209,-2054.2,0.00057534,120]
[337550937,1725805936218,-529.32,0.00057534,96]
[337550938,1725805936228,-3267.98,0.00057534,120]
[337550939,1725805936238,-1134.8,0.00057534,120]
[337550940,1725805936247,-4690.76,0.00057534,120]
[337550941,1725805936257,-666.78,0.00057534,120]
[337550942,1725805936267,-500.0,0.00057534,120]
[337550943,1725805936277,-950.66,0.00057534,120]
[337550944,1725805936287,-500.0,0.00057534,120]
[337550945,1725805936297,-876.05,0.00057534,120]
[337550946,1725805936306,-5751.99,0.00057534,120]
[337550947,1725805936316,-500.0,0.00057534,120]
[337550948,1725805936326,-800.0,0.00057712,120]
[337550949,1725805936336,-1500.0,0.00057739,120]
[337550950,1725805936345,-200.0,0.00058,120]
[337550951,1725805936354,-500.0,0.00058207,120]
[337550952,1725805936364,-529.32,0.00058219,99]
[337550953,1725805936376,-500.0,0.0005863,120]
[337550954,1725805936386,-500.0,0.0005863,120]
[337550955,1725805936395,-500.0,0.0005863,120]
[337550956,1725805936405,-500.0,0.0005863,120]
[337550957,1725805936415,-500.0,0.0005863,120]
[337550958,1725805936425,-500.0,0.0005863,120]
[337550959,1725805936435,-500.0,0.0005863,120]
[337550960,1725805936445,-500.0,0.0005863,120]
[337550961,1725805936454,-218.34587383,0.0005863,120]
[337550962,1725805936464,-500.0,0.0005863,120]
[337550963,1725805936474,-500.0,0.0005863,120]
[337550964,1725805936484,-379.03978053,0.0005863,120]
[337550965,1725805936493,-673.59,0.0005863,120]
[337550966,1725805936503,-911.08,0.0005863,120]
[337550967,1725805936513,-365.31715023,0.0005863,120]
[337550968,1725805936525,-533.3246618,0.0005863,120]
[337550969,1725805936536,-500.0,0.0005863,120]
[337550970,1725805936547,-629.21,0.0005863,120]
[337550971,1725805936556,-647.52,0.0005863,120]
[337550972,1725805936566,-883.64,0.0005863,120]
[337550973,1725805936576,-477.23862818,0.0005863,120]
[337550974,1725805936673,-500.0,0.0005863,120]
[337550975,1725805936683,-500.0,0.0005863,120]
[337550976,1725805936693,-500.0,0.0005863,120]
[337550977,1725805936703,-695.11,0.0005863,120]
[337550978,1725805936713,-539.71,0.0005863,120]
[337550979,1725805936723,-1337.0,0.0005863,120]
[337550980,1725805936733,-1005.43,0.0005863,120]
[337550981,1725805936743,-500.0,0.0005863,120]
[337550982,1725805936753,-519.26,0.0005863,120]
[337550983,1725805936765,-500.0,0.0005863,120]
[337550984,1725805936775,-500.0,0.0005863,120]
[337550985,1725805936784,-500.0,0.0005863,120]
[337550986,1725805936793,-637.79732783,0.0005863,120]
[337550987,1725805936803,-500.0,0.0005863,120]
[337550988,1725805936813,-777.71,0.0005863,120]
[337550989,1725805936822,-536.44,0.0005863,120]
[337550990,1725805936832,-357.77568982,0.0005863,120]
[337550991,1725805936842,-500.0,0.0005863,120]
[337550992,1725805936851,-395.06,0.0005863,120]
[337550993,1725805936861,-500.0,0.0005863,120]
[337550994,1725805936872,-500.0,0.0005863,120]
[337550995,1725805936882,-500.0,0.0005863,120]
[337550996,1725805936892,-1035.22,0.0005863,120]
[337550997,1725805936901,-177.51630946,0.0005863,120]
[337550998,1725805936912,-500.0,0.0005863,120]
[337550999,1725805936928,-500.0,0.0005863,120]
[337551000,1725805936938,-500.0,0.0005863,120]
[337551001,1725805936948,-500.0,0.0005863,120]
[337551002,1725805936958,-754.38,0.0005863,120]
[337551003,1725805936968,-500.0,0.0005863,120]
[337551004,1725805936978,-1120.52,0.0005863,120]
[337551005,1725805936988,-2095.23,0.0005863,120]
[337551006,1725805936997,-500.0,0.0005863,120]
[337551007,1725805937007,-778.94,0.0005863,120]
[337551008,1725805937017,-500.0,0.0005863,120]
[337551009,1725805937026,-571.63,0.0005863,120]
[337551010,1725805937036,-1114.92,0.0005863,120]
[337551011,1725805937046,-675.76,0.0005863,120]
[337551012,1725805937055,-783.87,0.0005863,120]
[337551013,1725805937064,-500.0,0.0005863,120]
[337551014,1725805937074,-722.92,0.0005863,120]
[337551015,1725805937083,-500.0,0.0005863,120]
[337551016,1725805937093,-500.0,0.0005863,120]
[337551017,1725805937103,-500.0,0.0005863,120]
[337551018,1725805937113,-500.0,0.0005863,120]
[337551019,1725805937124,-500.0,0.0005863,120]
[337551020,1725805937134,-500.0,0.0005863,120]
[337551021,1725805937144,-1071.72,0.0005863,120]
[337551022,1725805937154,-2383.56,0.0005863,120]
[337551023,1725805937164,-500.0,0.0005863,120]
[337551024,1725805937173,-574.57,0.0005863,120]
[337551025,1725805937183,-1141.39,0.0005863,120]
[337551026,1725805937192,-1569.13,0.0005863,120]
[337551027,1725805937202,-500.0,0.0005863,120]
[337551028,1725805937212,-285.58,0.0005863,7]
[337551029,1725805937221,-1441.77,0.0005863,120]
[337551030,1725805937231,-500.0,0.0005863,120]
[337551031,1725805937240,-1350.66,0.0005863,120]
[337551032,1725805937250,-575.01,0.0005863,120]
[337551033,1725805937260,-500.0,0.0005863,120]
[337551034,1725805937269,-1422.35,0.0005863,120]
[337551035,1725805937280,-500.0,0.0005863,120]
[337551036,1725805937289,-500.0,0.0005863,120]
[337551037,1725805937298,-500.0,0.0005863,120]
[337551038,1725805937309,-500.0,0.0005863,120]
[337551039,1725805937318,-500.0,0.0005863,120]
[337551040,1725805937328,-597.88,0.0005863,120]
[337551041,1725805937338,-2349.55,0.0005863,120]
[337551042,1725805937347,-906.85,0.0005863,120]
[337551043,1725805937357,-500.0,0.0005863,120]
[337551044,1725805937366,-500.0,0.0005863,120]
[337551045,1725805937376,-500.0,0.0005863,120]
[337551046,1725805937385,-445.04049572,0.0005863,120]
[337551047,1725805937396,-968.65,0.0005863,120]
[337551048,1725805937406,-754.03,0.0005863,120]
[337551049,1725805937416,-1888.16,0.0005863,120]
[337551050,1725805937425,-500.0,0.0005863,120]
[337551051,1725805937435,-547.56,0.0005863,120]
[337551052,1725805937444,-500.0,0.0005863,120]
[337551053,1725805937454,-500.0,0.0005863,120]
[337551054,1725805937464,-2284.18,0.0005863,120]
[337551055,1725805937473,-500.0,0.0005863,120]
[337551056,1725805937483,-500.0,0.0005863,120]
[337551057,1725805937493,-500.0,0.0005863,120]
[337551058,1725805937503,-500.0,0.0005863,120]
[337551059,1725805937512,-3590.46,0.0005863,120]
[337551060,1725805937522,-1819.09,0.0005863,120]
[337551061,1725805937532,-500.0,0.0005863,120]
[337551062,1725805937541,-500.0,0.0005863,120]
[337551063,1725805937551,-823.39,0.0005863,120]
[337551064,1725805937562,-500.0,0.0005863,120]
[337551065,1725805937572,-1728.98,0.0005863,120]
[337551066,1725805937583,-500.0,0.0005863,120]
[337551067,1725805937593,-500.0,0.0005863,120]
[337551068,1725805937607,-554.96,0.0005863,120]
[337551069,1725805937619,-500.0,0.0005863,120]
[337551070,1725805937629,-3569.14,0.0005863,120]
[337551071,1725805937639,-1143.59,0.0005863,120]
[337551072,1725805937650,-1919.68,0.0005863,120]
[337551073,1725805937661,-500.0,0.0005863,120]
[337551074,1725805937671,-500.0,0.0005863,120]
[337551075,1725805937682,-500.0,0.0005863,120]
[337551076,1725805937693,-3136.53,0.0005863,120]
[337551077,1725805937703,-500.0,0.0005863,120]
[337551078,1725805937715,-535.66,0.0005863,120]
[337551079,1725805937726,-500.0,0.0005863,120]
[337551080,1725805937738,-500.0,0.0005863,120]
[337551081,1725805937748,-1239.09,0.0005863,120]
[337551082,1725805937760,-500.0,0.0005863,120]
[337551083,1725805937769,-500.0,0.0005863,120]
[337551084,1725805937779,-816.25,0.0005863,120]
[337551085,1725805937789,-500.0,0.0005863,120]
[337551086,1725805937799,-500.0,0.0005863,120]
[337551087,1725805937810,-735.13,0.0005863,7]
[337551088,1725805937820,-500.0,0.0005863,120]
[337551089,1725805937830,-544.41,0.0005863,120]
[337551090,1725805937841,-502.90021605,0.0005863,120]
[337551091,1725805937851,-702.53,0.0005863,120]
[337551092,1725805937862,-2422.66,0.0005863,120]
[337551093,1725805937872,-651.97,0.0005863,120]
[337551094,1725805937883,-912.86,0.0005863,120]
[337551095,1725805937893,-500.0,0.0005863,120]
[337551096,1725805937903,-500.0,0.0005863,120]
[337551097,1725805937914,-500.0,0.0005863,120]
[337551098,1725805937925,-500.0,0.0005863,120]
[337551099,1725805937937,-2604.32,0.0005863,30]
[337551100,1725805937949,-712.44,0.0005863,120]
[337551101,1725805937959,-500.0,0.0005863,120]
[337551102,1725805937968,-1268.01,0.0005863,120]
[337551103,1725805937979,-2383.05,0.0005863,120]
[337551104,1725805937989,-500.0,0.0005863,120]
[337551105,1725805937998,-500.0,0.0005863,120]
[337551106,1725805938009,-500.0,0.0005863,120]
[337551107,1725805938019,-500.0,0.0005863,20]
[337551108,1725805938029,-500.0,0.0005863,120]
[337551109,1725805938039,-599.83,0.0005863,120]
[337551110,1725805938049,-470.71119641,0.0005863,120]
[337551111,1725805938059,-1639.78,0.0005863,120]
[337551112,1725805938069,-706.48,0.0005863,120]
[337551113,1725805938080,-560.92473474,0.0005863,120]
[337551114,1725805938089,-500.0,0.0005863,120]
[337551115,1725805938099,-500.0,0.0005863,120]
[337551116,1725805938109,-508.2,0.0005863,120]
[337551117,1725805938120,-509.38730986,0.0005863,120]
[337551118,1725805938130,-500.0,0.0005863,120]